bitfinex-derivatives/quotes_SOLF0:USTF0_20260305
["timestamp","ask_amount","ask_price","bid_price","bid_amount"]
[1772732342304,9.2842799,88.377,88.301,9.47116686]
[1772732342701,9.2842799,88.399,88.321,9.47116686]
[1772732342904,9.2842799,88.399,88.32,9.65019838]
[1772732342905,9.2842799,88.418,88.34,9.47116686]
[1772732343200,9.2842799,88.418,88.341,9.47116686]
[1772732343404,9.2842799,88.418,88.35,9.47116686]
[1772732344806,9.2842799,88.399,88.321,9.47116686]
[1772732345105,9.2842799,88.419,88.321,9.47116686]
[1772732345400,9.2842799,88.419,88.32,9.65019838]
[1772732345599,9.2842799,88.418,88.321,9.47116686]
[1772732346403,10.178,88.406,88.339,9.47116686]
[1772732346600,9.2842799,88.418,88.339,9.47116686]
[1772732346900,10.179,88.4,88.341,10.186]
[1772732347102,9.2842799,88.418,88.341,9.47116686]
[1772732347496,19.4612799,88.418,88.353,9.47116686]
[1772732348003,9.2842799,88.418,88.353,9.47116686]
[1772732348404,10.178,88.41,88.355,10.184]
[1772732348699,10.178,88.41,88.353,9.47116686]
[1772732348906,9.2842799,88.418,88.353,9.47116686]
[1772732349707,10.179,88.397,88.321,9.47116686]
[1772732349904,9.2842799,88.418,88.34,9.65019838]
[1772732350103,9.2842799,88.418,88.341,9.47116686]
[1772732350304,10.177,88.417,88.341,9.47116686]
[1772732350511,9.2842799,88.439,88.361,9.47116686]
[1772732350814,10.175,88.436,88.378,10.181]
[1772732351016,10.175,88.436,88.379,9.47116686]
[1772732352309,0.07138039,88.416,88.379,9.47116686]
[1772732352714,9.2842799,88.462,88.383,9.47116686]
[1772732353011,9.2842799,88.462,88.39,9.47116686]
[1772732353413,10.17,88.478,88.41,9.47116686]
[1772732353614,9.2842799,88.499,88.41,9.47116686]
[1772732354319,9.2842799,88.499,88.38,9.64728672]
[1772732354320,9.2842799,88.479,88.38,9.64728672]
[1772732354513,9.2842799,88.499,88.401,9.47116686]
[1772732354815,10.169,88.486,88.414,10.177]
[1772732355020,10.169,88.486,88.415,9.47116686]
[1772732355211,9.2842799,88.499,88.415,9.47116686]
[1772732355516,10.17,88.474,88.415,9.47116686]
[1772732357018,9.2842799,88.496,88.419,9.47116686]
[1772732357617,9.2842799,88.496,88.449,0.07222605]
[1772732359120,9.2842799,88.496,88.419,9.47116686]
[1772732359422,9.2842799,88.479,88.419,9.47116686]
[1772732360116,9.2842799,88.498,88.419,9.47116686]
[1772732360518,9.2842799,88.498,88.423,10.176]
[1772732360919,9.2842799,88.498,88.424,9.47116686]
[1772732362820,10.17,88.476,88.424,9.47116686]
[1772732363620,9.2842799,88.498,88.424,9.47116686]
[1772732363621,10.171,88.468,88.424,9.47116686]
[1772732365122,9.64728672,88.48,88.391,9.47116686]
[1772732365420,9.2842799,88.479,88.391,9.47116686]
[1772732366925,10.173,88.453,88.392,10.18]
[1772732367219,9.2842799,88.479,88.393,9.47116686]
[1772732368324,9.2842799,88.479,88.413,10.177]
[1772732368714,10.171,88.467,88.413,10.177]
[1772732369118,9.2842799,88.479,88.393,9.47116686]
[1772732370519,10.13446394,88.459,88.371,9.52648025]
[1772732370918,10.20652238,88.445,88.371,9.52648025]
[1772732371428,10.13446394,88.445,88.371,9.52648025]
[1772732371824,10.175,88.433,88.382,10.181]
[1772732372319,10.13446394,88.445,88.382,9.52648025]
[1772732372628,10.13446394,88.463,88.382,9.52648025]
[1772732373031,10.175,88.439,88.387,9.52648025]
[1772732373327,0.07181247,88.422,88.387,9.52648025]
[1772732373925,0.07181247,88.422,88.391,9.52648025]
[1772732374119,9.64728672,88.46,88.391,9.52648025]
[1772732374326,10.13446394,88.464,88.391,9.52648025]
[1772732374626,10.173,88.449,88.398,10.179]
[1772732374823,10.13446394,88.464,88.398,10.179]
[1772732375528,10.173,88.451,88.398,10.179]
[1772732375723,10.173,88.451,88.422,0.07180422]
[1772732375926,10.13446394,88.464,88.422,0.07180422]
[1772732376327,10.13446394,88.464,88.38,9.52648025]
[1772732376328,10.13446394,88.446,88.38,19.70748025]
[1772732376524,10.13446394,88.446,88.264,27.89143173]
[1772732376525,10.13446394,88.439,88.361,9.52648025]
[1772732376829,158.22,88.471,88.274,158.571]
[1772732376830,10.13446394,88.419,88.331,9.52648025]
[1772732377330,10.13446394,88.399,88.331,9.52648025]
[1772732378030,10.181,88.382,88.331,9.52648025]
[1772732378629,10.18,88.39,88.332,10.187]
[1772732378825,10.13446394,88.399,88.333,9.52648025]
[1772732379027,0.07169088,88.365,88.333,9.52648025]
[1772732379229,10.13446394,88.399,88.333,9.52648025]
[1772732379431,10.13446394,88.417,88.347,10.185]
[1772732380131,10.179,88.4,88.34,9.52648025]
[1772732380334,10.13446394,88.417,88.34,9.52648025]
[1772732382336,158.253,88.453,88.322,9.52648025]
[1772732382337,10.13446394,88.399,88.322,9.52648025]
[1772732382633,10.181,88.385,88.33,10.187]
[1772732383023,10.13446394,88.399,88.322,9.52648025]
[1772732384432,10.182,88.371,88.322,9.52648025]
[1772732384733,10.13446394,88.399,88.322,9.52648025]
[1772732385432,10.181,88.379,88.322,9.52648025]
[1772732386534,10.181,88.379,88.33,10.187]
[1772732387635,10.181,88.379,88.331,9.52648025]
[1772732388335,10.181,88.379,88.332,10.187]
[1772732389039,0.07135769,88.364,88.332,10.187]
[1772732390931,10.18,88.388,88.34,9.52648025]
[1772732391240,10.13446394,88.419,88.34,9.52648025]
[1772732392136,10.177,88.414,88.363,10.183]
[1772732392335,10.177,88.414,88.363,19.70948025]
[1772732392835,10.177,88.414,88.366,9.52648025]
[1772732393436,10.13446394,88.419,88.348,9.52648025]
[1772732394327,10.13446394,88.419,88.35,9.52648025]
[1772732395537,10.178,88.413,88.36,10.184]
[1772732395732,10.13446394,88.419,88.361,9.52648025]
[1772732396131,9.64728672,88.45,88.362,9.52648025]
[1772732396638,10.13446394,88.456,88.381,9.52648025]
[1772732396835,10.13446394,88.456,88.38,9.64728672]
[1772732396836,10.13446394,88.456,88.393,9.52648025]
[1772732397635,10.174,88.441,88.393,9.52648025]
[1772732398035,10.13446394,88.456,88.393,9.52648025]
[1772732399432,20.30746394,88.456,88.402,10.179]
[1772732399636,20.30746394,88.456,88.393,9.52648025]
[1772732400138,20.30746394,88.456,88.402,9.70880975]
[1772732400336,9.31071271,88.473,88.402,9.70880975]
[1772732400534,9.31071271,88.489,88.402,9.70880975]
[1772732400730,9.31071271,88.489,88.421,9.70880975]
[1772732401333,9.31071271,88.489,88.42,10.177]
[1772732401334,9.31071271,88.489,88.422,9.70880975]
[1772732401937,9.31071271,88.529,88.448,9.70880975]
[1772732402337,10.165,88.518,88.451,9.70880975]
[1772732402537,9.31071271,88.529,88.451,9.70880975]
[1772732402941,9.31071271,88.519,88.431,9.70880975]
[1772732403134,9.31071271,88.518,88.431,9.70880975]
[1772732403541,10.168,88.492,88.431,9.70880975]
[1772732403840,9.31071271,88.501,88.431,9.70880975]
[1772732404544,10.167,88.508,88.433,9.70880975]
[1772732404940,9.31071271,88.519,88.433,9.70880975]
[1772732405142,10.166,88.51,88.444,10.174]
[1772732405342,9.31071271,88.509,88.445,9.70880975]
[1772732405540,9.31071271,88.527,88.445,9.70880975]
[1772732405840,10.165,88.522,88.46,9.70880975]
[1772732406341,10.166,88.513,88.46,9.70880975]
[1772732406745,9.31071271,88.522,88.46,9.70880975]
[1772732407038,10.165,88.521,88.463,10.172]
[1772732407245,9.31071271,88.52,88.46,9.70880975]
[1772732407643,10.167,88.506,88.46,9.70880975]
[1772732408144,10.166,88.515,88.46,9.70880975]
[1772732409041,9.31071271,88.52,88.46,9.70880975]
[1772732409248,10.165,88.524,88.46,9.70880975]
[1772732409747,9.31071271,88.538,88.462,9.70880975]
[1772732411043,9.31071271,88.515,88.444,9.70880975]
[1772732411945,9.31071271,88.498,88.421,9.70880975]
[1772732412546,19.47871271,88.492,88.431,10.175]
[1772732412848,9.31071271,88.491,88.411,9.70880975]
[1772732413148,9.31071271,88.491,88.415,9.70880975]
[1772732413344,18.94750458,88.51,88.415,9.70880975]
[1772732413549,9.31071271,88.529,88.451,9.70880975]
[1772732414244,19.47471271,88.529,88.467,10.171]
[1772732414452,9.31071271,88.548,88.467,9.70880975]
[1772732415446,9.31071271,88.529,88.448,9.70880975]
[1772732416050,9.31071271,88.509,88.448,9.70880975]
[1772732416351,9.31071271,88.529,88.431,9.70880975]
[1772732416849,9.31071271,88.513,88.448,9.70880975]
[1772732418848,20.325,88.547,88.43,9.63679187]
[1772732418849,10.169,88.488,88.43,9.63679187]
[1772732419249,10.169,88.488,88.429,9.70880975]
[1772732419446,10.169,88.488,88.438,10.174]
[1772732419651,10.168,88.497,88.439,9.70880975]
[1772732419947,9.31071271,88.529,88.439,9.70880975]
[1772732420352,10.168,88.5,88.445,10.174]
[1772732420758,9.31071271,88.511,88.446,9.70880975]
[1772732421555,9.31071271,88.511,88.452,9.70880975]
[1772732422651,9.31071271,88.509,88.431,9.70880975]
[1772732424355,10.169,88.486,88.431,19.88380975]
[1772732424556,9.31071271,88.509,88.432,9.70880975]
[1772732425058,10.167,88.506,88.45,10.173]
[1772732425250,9.31071271,88.509,88.432,9.70880975]
[1772732426353,10.168,88.499,88.447,10.173]
[1772732426550,10.168,88.499,88.448,9.70880975]
[1772732426755,9.31071271,88.509,88.448,9.70880975]
[1772732427357,9.31071271,88.509,88.429,9.08630085]
[1772732427557,9.31071271,88.509,88.411,9.08630085]
[1772732427954,9.63679187,88.51,88.42,10.177]
[1772732427955,9.71958171,88.487,88.42,10.177]
[1772732428148,9.71958171,88.487,88.421,9.08630085]
[1772732429061,10.17,88.475,88.423,10.176]
[1772732429562,10.169,88.483,88.424,9.08630085]
[1772732430251,9.36327598,88.488,88.424,9.08630085]
[1772732431559,10.169,88.487,88.429,9.55087286]
[1772732432362,10.169,88.487,88.431,10.175]
[1772732432561,10.168,88.495,88.429,9.55087286]
[1772732432758,9.32317023,88.506,88.431,9.55087286]
[1772732433562,10.166,88.514,88.461,10.172]
[1772732433860,10.166,88.514,88.43,9.63679187]
[1772732433861,9.29667776,88.551,88.462,9.55087286]
[1772732434063,9.29667776,88.549,88.462,9.55087286]
[1772732434257,9.29667776,88.548,88.462,9.55087286]
[1772732434456,9.29667776,88.547,88.462,9.55087286]
[1772732434653,9.29667776,88.546,88.462,9.55087286]
[1772732434865,9.28627797,88.545,88.462,9.55087286]
[1772732435052,9.28673178,88.544,88.462,9.55087286]
[1772732435254,9.28673178,88.543,88.462,9.55087286]
[1772732435459,9.28673178,88.529,88.462,9.55087286]
[1772732435661,9.28673178,88.528,88.462,9.55087286]
[1772732435865,10.166,88.511,88.462,9.55087286]
[1772732436061,9.28673178,88.528,88.462,9.55087286]
[1772732437163,10.168,88.493,88.436,9.55087286]
[1772732437668,9.31206063,88.499,88.411,9.55087286]
[1772732438065,9.31206063,88.499,88.431,9.55087286]
[1772732439458,9.31206063,88.499,88.434,9.55087286]
[1772732439659,9.28084389,88.513,88.434,9.55087286]
[1772732440167,9.28084389,88.513,88.449,10.173]
[1772732440865,10.167,88.506,88.457,10.172]
[1772732441058,9.28084389,88.513,88.457,10.172]
[1772732441465,9.28084389,88.513,88.452,9.55087286]
[1772732442068,10.167,88.505,88.453,10.173]
[1772732442269,9.28084389,88.513,88.454,9.55087286]
[1772732442968,10.166,88.511,88.454,9.55087286]
[1772732443772,9.01555305,88.511,88.431,9.55087286]
[1772732443966,9.02825136,88.509,88.431,9.55087286]
[1772732444274,6.08896278,88.508,88.459,9.55087286]
[1772732444464,10.166,88.516,88.459,9.55087286]
[1772732444665,9.02825136,88.523,88.459,9.55087286]
[1772732444666,6.08896278,88.517,88.459,9.55087286]
[1772732444865,6.08896278,88.522,88.459,9.55087286]
[1772732445072,6.08896278,88.521,88.473,10.171]
[1772732445373,6.08896278,88.526,88.474,9.55087286]
[1772732445575,6.08896278,88.533,88.474,9.55087286]
[1772732445773,6.08896278,88.532,88.474,9.55087286]
[1772732445973,10.165,88.522,88.474,9.55087286]
[1772732446176,8.82540439,88.521,88.474,9.55087286]
[1772732446473,8.82540439,88.52,88.474,9.55087286]
[1772732446774,8.82540439,88.519,88.474,9.55087286]
[1772732446975,8.82540439,88.518,88.474,9.55087286]
[1772732447171,8.82540439,88.517,88.475,10.17]
[1772732447375,10.165,88.524,88.474,9.55087286]
[1772732447574,8.82524363,88.523,88.474,9.55087286]
[1772732447775,10.165,88.518,88.474,9.55087286]
[1772732447976,8.82524363,88.517,88.474,9.55087286]
[1772732448276,8.92387892,88.515,88.451,9.55087286]
[1772732448475,9.63679187,88.53,88.451,9.55087286]
[1772732448476,8.92387892,88.513,88.451,9.55087286]
[1772732448676,8.82524363,88.512,88.451,9.55087286]
[1772732448878,8.82524363,88.525,88.451,9.55087286]
[1772732449078,8.82524363,88.528,88.485,10.169]
[1772732449279,8.82524363,88.535,88.485,10.169]
[1772732449579,10.164,88.532,88.477,10.17]
[1772732449770,8.82524363,88.531,88.478,9.55087286]
[1772732449970,8.82524363,88.53,88.478,9.55087286]
[1772732450173,8.82524363,88.545,88.478,9.55087286]
[1772732450476,8.96710699,88.565,88.495,9.55087286]
[1772732450676,17.77720286,88.564,88.495,9.55087286]
[1772732450882,8.81009587,88.563,88.495,9.55087286]
[1772732451078,10.16,88.563,88.512,10.166]
[1772732451372,8.96710699,88.564,88.495,9.55087286]
[1772732451776,8.98848596,88.587,88.495,9.55087286]
[1772732451972,8.98848596,88.585,88.516,9.55087286]
[1772732452279,8.80299363,88.585,88.516,9.55087286]
[1772732452580,10.156,88.597,88.54,10.163]
[1772732452779,8.80299363,88.599,88.534,9.55087286]
[1772732452979,8.80299363,88.619,88.53,9.63679187]
[1772732453283,8.80299363,88.619,88.551,9.55087286]
[1772732453476,8.98027053,88.638,88.551,9.55087286]
[1772732453670,8.80299363,88.643,88.571,9.55087286]
[1772732453876,8.9391742,88.642,88.571,9.55087286]
[1772732454076,10.155,88.612,88.55,9.55087286]
[1772732454383,8.9391742,88.612,88.55,9.55087286]
[1772732454581,8.9391742,88.612,88.532,9.55087286]
[1772732454781,9.63679187,88.63,88.532,9.55087286]
[1772732455078,8.93117195,88.629,88.551,9.55087286]
[1772732455280,10.153,88.625,88.552,10.161]
[1772732455480,8.93117195,88.624,88.553,9.55087286]
[1772732456081,8.93117195,88.624,88.566,10.16]
[1772732456881,8.93117195,88.624,88.553,9.55087286]
[1772732456882,9.18373094,88.621,88.553,9.55087286]
[1772732457384,9.18373094,88.607,88.534,10.163]
[1772732458186,9.03021752,88.601,88.531,9.55087286]
[1772732458780,9.03021752,88.601,88.51,9.63679187]
[1772732458781,9.03021752,88.601,88.511,9.55087286]
[1772732459386,10.156,88.598,88.53,9.55087286]
[1772732460283,9.03021752,88.601,88.54,9.57605082]
[1772732460688,9.03021752,88.601,88.52,9.57605082]
[1772732461189,8.98313449,88.589,88.502,9.57605082]
[1772732461583,8.98313449,88.569,88.484,9.57605082]
[1772732461783,8.98313449,88.569,88.488,9.57605082]
[1772732462380,8.98313449,88.569,88.47,9.63679187]
[1772732462381,8.98539601,88.549,88.471,9.57605082]
[1772732462778,10.163,88.54,88.483,10.169]
[1772732462977,10.163,88.54,88.471,9.57605082]
[1772732462978,8.98539601,88.549,88.471,9.57605082]
[1772732464290,9.63679187,88.55,88.471,9.57605082]
[1772732464291,8.9850632,88.53,88.471,9.57605082]
[1772732464784,10.166,88.517,88.471,9.57605082]
[1772732464989,10.166,88.517,88.455,9.57605082]
[1772732465284,8.97805684,88.529,88.455,9.57605082]
[1772732465489,8.97805684,88.529,88.351,158.434]
[1772732465490,8.97805684,88.509,88.351,158.434]
[1772732465688,8.97805684,88.489,88.401,9.57605082]
[1772732465890,8.95991423,88.479,88.404,9.57605082]
[1772732466091,18.5967061,88.47,88.404,9.57605082]
[1772732466392,18.5967061,88.49,88.404,9.57605082]
[1772732467092,19.12204188,88.488,88.413,9.57605082]
[1772732467493,10.17,88.478,88.413,9.57605082]
[1772732467693,8.95304188,88.488,88.413,9.57605082]
[1772732468092,10.169,88.485,88.423,9.57605082]
[1772732468294,9.17937468,88.509,88.423,9.57605082]
[1772732468891,9.17937468,88.509,88.435,9.57605082]
[1772732469785,10.167,88.505,88.435,9.57605082]
[1772732470384,9.17937468,88.509,88.439,9.57605082]
[1772732470587,9.17937468,88.509,88.42,19.21284269]
[1772732470787,9.16346958,88.489,88.42,9.57605082]
[1772732470985,9.16370626,88.488,88.421,10.176]
[1772732471190,9.16370626,88.488,88.422,9.57605082]
[1772732471386,9.16370626,88.509,88.422,9.57605082]
[1772732471790,9.16370626,88.509,88.441,9.57605082]
[1772732471993,9.16370626,88.509,88.421,9.57605082]
[1772732472198,10.169,88.491,88.422,10.176]
[1772732472392,9.26188206,88.49,88.423,9.57605082]
[1772732472796,10.169,88.489,88.424,10.176]
[1772732472996,9.25533603,88.488,88.425,9.57605082]
[1772732473400,9.25533603,88.488,88.426,10.176]
[1772732473993,10.168,88.497,88.434,10.175]
[1772732474193,9.2598002,88.506,88.434,9.57605082]
[1772732474690,9.2598002,88.499,88.434,9.57605082]
[1772732475095,9.25339222,88.492,88.434,9.57605082]
[1772732475895,9.2664835,88.477,88.395,9.57605082]
[1772732476097,9.2664835,88.459,88.395,9.57605082]
[1772732476897,9.2664835,88.459,88.396,10.179]
[1772732477999,10.173,88.457,88.396,10.179]
[1772732478699,10.174,88.439,88.38,9.63846781]
[1772732478901,9.21808402,88.438,88.375,9.57605082]
[1772732479402,10.175,88.436,88.376,10.182]
[1772732480494,10.174,88.444,88.382,9.57605082]
[1772732481397,10.174,88.444,88.384,10.181]
[1772732482301,10.174,88.444,88.384,19.75705082]
[1772732482503,10.174,88.444,88.337,20.373]
[1772732482504,9.20175463,88.452,88.393,9.57605082]
[1772732482803,9.20175463,88.452,88.376,9.57605082]
[1772732483202,9.19600841,88.432,88.36,9.63846781]
[1772732483401,9.19600841,88.432,88.358,9.57605082]
[1772732483710,9.19600841,88.432,88.361,9.57605082]
[1772732486695,10.176,88.423,88.364,10.183]
[1772732486900,9.19600841,88.432,88.361,9.57605082]
[1772732487805,9.19600841,88.432,88.383,10.181]
[1772732488405,8.95591613,88.453,88.384,8.91523461]
[1772732488802,19.12459682,88.443,88.384,8.91523461]
[1772732489002,8.95059682,88.442,88.384,8.91523461]
[1772732489399,8.95059682,88.439,88.366,8.91523461]
[1772732489603,8.95059682,88.439,88.36,9.63846781]
[1772732489604,8.95059682,88.439,88.341,8.91523461]
[1772732489813,8.94502416,88.419,88.341,8.91523461]
[1772732490102,10.18,88.395,88.341,8.91523461]
[1772732490303,8.94026032,88.402,88.341,8.91523461]
[1772732490504,10.179,88.4,88.341,8.91523461]
[1772732491504,10.179,88.4,88.343,8.8412266]
[1772732492408,10.179,88.4,88.352,10.184]
[1772732493601,8.8101088,88.399,88.343,8.8412266]
[1772732493811,8.8101088,88.369,88.312,8.8412266]
[1772732494304,10.182,88.37,88.312,8.8412266]
[1772732494512,8.80396008,88.388,88.312,8.8412266]
[1772732495416,8.79905164,88.379,88.312,8.8412266]
[1772732495812,8.79905164,88.379,88.32,10.188]
[1772732496118,9.63846781,88.39,88.32,8.8412266]
[1772732496318,18.44857661,88.39,88.32,8.8412266]
[1772732496521,18.9901088,88.388,88.328,10.187]
[1772732497014,8.8101088,88.419,88.362,10.183]
[1772732497421,8.8101088,88.419,88.351,8.8412266]
[1772732497620,8.8101088,88.419,88.362,8.8412266]
[1772732498217,8.8101088,88.437,88.362,8.8412266]
[1772732499424,10.176,88.428,88.37,10.182]
[1772732499823,8.8101088,88.437,88.362,8.8412266]
[1772732500015,10.177,88.421,88.362,8.8412266]
[1772732500220,8.8101088,88.437,88.362,8.8412266]
[1772732500423,8.8101088,88.459,88.371,8.8412266]
[1772732500822,8.8101088,88.459,88.378,19.0222266]
[1772732501421,8.8101088,88.459,88.383,8.8412266]
[1772732502230,8.8101088,88.459,88.37,9.63846781]
[1772732502231,8.8101088,88.459,88.384,8.8412266]
[1772732502728,10.174,88.442,88.384,8.8412266]
[1772732503724,10.175,88.434,88.385,10.181]
[1772732504724,10.175,88.434,88.385,19.0222266]
[1772732505028,10.175,88.434,88.385,8.8412266]
[1772732505729,8.8101088,88.427,88.368,8.8412266]
[1772732505925,8.8101088,88.427,88.331,8.8412266]
[1772732506528,10.177,88.414,88.35,8.8412266]
[1772732506927,10.177,88.414,88.366,10.183]
[1772732507229,10.177,88.414,88.35,8.8412266]
[1772732507729,10.177,88.414,88.365,10.183]
[1772732507929,8.8101088,88.41,88.35,8.8412266]
[1772732508126,9.63846781,88.44,88.35,8.8412266]
[1772732508326,10.177,88.42,88.372,10.182]
[1772732508526,10.177,88.42,88.361,8.8412266]
[1772732508921,10.178,88.413,88.362,10.183]
[1772732509327,8.8101088,88.423,88.362,19.0242266]
[1772732509525,8.8101088,88.423,88.36,9.63846781]
[1772732509526,8.73007188,88.439,88.363,8.8412266]
[1772732509830,8.8101088,88.441,88.363,8.8412266]
[1772732510029,10.174,88.44,88.387,10.18]
[1772732510330,8.8101088,88.441,88.38,8.8412266]
[1772732511128,8.8101088,88.441,88.36,9.63846781]
[1772732511129,10.177,88.415,88.36,28.66269441]
[1772732511723,8.8101088,88.424,88.36,8.8412266]
[1772732512830,10.178,88.409,88.36,8.8412266]
[1772732513730,10.179,88.402,88.36,8.8412266]
[1772732513933,10.179,88.402,88.351,10.185]
[1772732514429,10.18,88.392,88.342,8.8412266]
[1772732514825,10.179,88.4,88.351,10.185]
[1772732515028,8.8101088,88.403,88.342,8.8412266]
[1772732515436,10.18,88.388,88.343,10.186]
[1772732515731,10.18,88.388,88.342,8.8412266]
[1772732516031,8.8101088,88.403,88.325,8.8412266]
[1772732516032,8.74127326,88.402,88.325,8.8412266]
[1772732516229,8.8101088,88.403,88.325,8.8412266]
[1772732516422,8.8101088,88.386,88.325,8.8412266]
[1772732517430,10.183,88.369,88.325,8.8412266]
[1772732517630,10.183,88.369,88.31,10.189]
[1772732517831,8.77986156,88.379,88.307,8.8412266]
[1772732518036,8.77986156,88.378,88.307,8.8412266]
[1772732518527,10.185,88.351,88.294,10.191]
[1772732518732,10.185,88.351,88.294,19.0322266]
[1772732518925,10.185,88.351,88.295,8.8412266]
[1772732519127,10.184,88.359,88.299,10.191]
[1772732520234,8.77986156,88.361,88.308,10.19]
[1772732520528,10.183,88.367,88.309,8.78702723]
[1772732520739,9.07428159,88.378,88.309,8.78702723]
[1772732521035,10.182,88.376,88.318,8.78702723]
[1772732521429,10.182,88.376,88.319,8.78702723]
[1772732521828,9.07428159,88.378,88.319,8.78702723]
[1772732521829,10.183,88.369,88.319,8.78702723]
[1772732522135,9.07428159,88.378,88.303,8.78702723]
[1772732522537,10.183,88.369,88.308,8.78702723]
[1772732523033,9.04690088,88.361,88.289,8.78702723]
[1772732523238,9.04690088,88.359,88.289,8.78702723]
[1772732523431,9.04690088,88.358,88.289,8.78702723]
[1772732526438,10.185,88.344,88.291,18.97902723]
[1772732526831,9.04690088,88.358,88.292,8.78702723]
[1772732527031,9.02617635,88.378,88.292,8.78702723]
[1772732527344,10.184,88.354,88.303,10.19]
[1772732527536,9.63846781,88.38,88.301,8.78702723]
[1772732527735,9.02617635,88.379,88.301,8.78702723]
[1772732528641,19.20717635,88.379,88.318,8.78702723]
[1772732528940,9.02617635,88.379,88.318,8.78702723]
[1772732529137,9.02617635,88.379,88.301,8.78702723]
[1772732530544,9.02617635,88.379,88.281,8.78702723]
[1772732531037,8.97850937,88.339,88.281,8.78702723]
[1772732531541,8.97850937,88.339,88.241,8.78702723]
[1772732531738,8.97850937,88.339,88.277,10.193]
[1772732531739,10.188,88.326,88.277,10.193]
[1772732531938,8.97850937,88.339,88.277,18.98002723]
[1772732532338,8.97850937,88.339,88.293,0.07165251]
[1772732533041,10.185,88.35,88.293,8.85867974]
[1772732533643,10.185,88.35,88.293,8.78702723]
[1772732533843,10.184,88.359,88.302,8.78702723]
[1772732534136,8.71307162,88.359,88.284,8.78702723]
[1772732534334,10.186,88.342,88.292,10.191]
[1772732534733,8.71307162,88.359,88.292,10.191]
[1772732534734,8.71307162,88.359,88.292,18.97802723]
[1772732535045,9.66734055,88.37,88.27,9.66734055]
[1772732535046,9.66734055,88.37,88.296,8.78702723]
[1772732535248,8.66295326,88.375,88.296,8.78702723]
[1772732535837,8.62949568,88.389,88.315,8.78702723]
[1772732536035,8.62949568,88.388,88.315,8.78702723]
[1772732536938,10.183,88.362,88.315,8.78702723]
[1772732538042,10.183,88.37,88.315,8.78702723]
[1772732538844,10.182,88.378,88.322,10.188]
[1772732539141,8.55918437,88.386,88.322,10.188]
[1772732539342,10.182,88.371,88.315,18.97602723]
[1772732539540,8.55918437,88.386,88.316,8.78702723]
[1772732540042,10.183,88.365,88.316,8.78702723]
[1772732541835,10.182,88.376,88.316,8.78702723]
[1772732542034,10.182,88.376,88.318,10.188]
[1772732542234,8.55918437,88.386,88.318,10.188]
[1772732543245,8.55918437,88.386,88.325,10.188]
[1772732543744,8.55918437,88.386,88.319,8.78702723]
[1772732544139,10.183,88.366,88.319,8.78702723]
[1772732545245,8.55918437,88.386,88.319,8.78702723]
[1772732546046,10.183,88.366,88.319,8.78702723]
[1772732547844,8.25355895,88.369,88.291,8.98083911]
[1772732548046,8.25355895,88.368,88.291,8.98083911]
[1772732548646,10.185,88.346,88.291,8.98083911]
[1772732548945,8.21039432,88.366,88.291,8.98083911]
[1772732549149,8.21039432,88.366,88.212,11.32]
[1772732549150,8.21112475,88.349,88.273,8.98083911]
[1772732549350,10.188,88.321,88.273,8.98083911]
[1772732550342,8.16186226,88.329,88.254,8.23745335]
[1772732550548,8.16186226,88.309,88.231,8.23745335]
[1772732551449,8.16186226,88.309,88.233,10.198]
[1772732551644,8.16186226,88.309,88.234,8.23745335]
[1772732551949,8.16186226,88.309,88.235,10.198]
[1772732552147,7.92857647,88.326,88.236,8.23745335]
[1772732552447,7.92857647,88.326,88.21,9.66734055]
[1772732552448,7.92857647,88.326,88.251,8.23745335]
[1772732552649,10.188,88.323,88.262,8.23745335]
[1772732552851,7.92857647,88.326,88.262,8.23745335]
[1772732553742,10.189,88.316,88.262,8.23745335]
[1772732554450,10.189,88.312,88.262,8.23745335]
[1772732555545,7.86108179,88.315,88.262,8.23745335]
[1772732555750,10.188,88.322,88.262,8.23745335]
[1772732557158,7.86154251,88.35,88.271,8.23745335]
[1772732557759,7.86154251,88.35,88.289,8.23745335]
[1772732558661,7.87232606,88.349,88.289,8.23745335]
[1772732559460,10.186,88.339,88.289,8.23745335]
[1772732560357,10.187,88.331,88.305,0.07159363]
[1772732560565,7.8903327,88.345,88.265,8.23745335]
[1772732561765,10.186,88.336,88.269,8.23745335]
[1772732562265,8.7555006,88.344,88.25,9.66734055]
[1772732562266,10.187,88.328,88.271,8.23745335]
[1772732562468,7.74586115,88.341,88.271,8.23745335]